[Event "*** MasterClass Titled Tuesday Blitz"]
[Site "Chess.com"]
[Date "2017.09.05"]
[Round "9"]
[White "nonscitis"]
[Black "manubibi"]
[Result "0-1"]
[WhiteElo "2419"]
[BlackElo "2439"]
[TimeControl "180+2"]
[EndTime "15:11:43 PDT"]
[Termination "manubibi won by resignation"]

1. e4 {[%clk 0:03:01.9]} 1... c5 {[%clk 0:03:00]} 2. Nf3 {[%clk 0:03:01.8]} 2...
d6 {[%clk 0:03:01.4]} 3. d4 {[%clk 0:03:02.4]} 3... cxd4 {[%clk 0:03:03.3]} 4.
Nxd4 {[%clk 0:03:03.8]} 4... Nf6 {[%clk 0:03:04.8]} 5. Nc3 {[%clk 0:03:04.9]}
5... a6 {[%clk 0:03:06.1]} 6. Bg5 {[%clk 0:03:04.9]} 6... Nbd7 {[%clk
0:03:03.7]} 7. f4 {[%clk 0:03:02.2]} 7... h6 {[%clk 0:03:03.8]} 8. Bh4 {[%clk
0:03:02.3]} 8... e5 {[%clk 0:02:44.8]} 9. fxe5 {[%clk 0:02:59.7]} 9... dxe5
{[%clk 0:02:45.3]} 10. Nb3 {[%clk 0:03:00.2]} 10... Qc7 {[%clk 0:02:40.1]} 11.
Bd3 {[%clk 0:02:56.2]} 11... g6 {[%clk 0:02:40.4]} 12. O-O {[%clk 0:02:56.3]}
12... Bg7 {[%clk 0:02:41.5]} 13. Nd5 {[%clk 0:02:36.9]} 13... Nxd5 {[%clk
0:02:41.1]} 14. exd5 {[%clk 0:02:38.7]} 14... O-O {[%clk 0:02:42.4]} 15. Be7
{[%clk 0:02:31.7]} 15... Re8 {[%clk 0:02:37.7]} 16. d6 {[%clk 0:02:32.2]} 16...
Qb6+ {[%clk 0:02:38.7]} 17. Kh1 {[%clk 0:02:32.9]} 17... Nf8 {[%clk 0:02:18.1]}
18. c4 {[%clk 0:01:47.9]} 18... Be6 {[%clk 0:02:16]} 19. c5 {[%clk 0:01:48.8]}
19... Qc6 {[%clk 0:02:14.8]} 20. Rc1 {[%clk 0:01:48.6]} 20... e4 {[%clk
0:01:55.1]} 21. Bc4 {[%clk 0:01:47]} 21... Bxb2 {[%clk 0:01:47.6]} 22. Bxe6
{[%clk 0:01:19.5]} 22... Nxe6 {[%clk 0:01:49.5]} 23. Rc2 {[%clk 0:01:20]} 23...
Bg7 {[%clk 0:01:40.2]} 24. Qg4 {[%clk 0:01:02]} 24... h5 {[%clk 0:01:39.6]} 25.
Qh3 {[%clk 0:01:00.4]} 25... f5 {[%clk 0:01:37.3]} 26. Qg3 {[%clk 0:00:56.5]}
26... Kh7 {[%clk 0:01:35.4]} 27. Rcf2 {[%clk 0:00:43.4]} 27... Qd7 {[%clk
0:01:23.8]} 28. Rxf5 {[%clk 0:00:40.8]} 28... gxf5 {[%clk 0:01:23.1]} 29. Rxf5
{[%clk 0:00:41.1]} 29... Rxe7 {[%clk 0:01:22.7]} 30. Rxh5+ {[%clk 0:00:30.8]}
30... Kg8 {[%clk 0:01:22.8]} 31. Qg6 {[%clk 0:00:30]} 31... Nf8 {[%clk
0:01:16.6]} 32. Qg3 {[%clk 0:00:16.8]} 32... Rf7 {[%clk 0:01:17.2]} 33. h3
{[%clk 0:00:16.3]} 33... Rf5 {[%clk 0:01:14.4]} 34. Rh4 {[%clk 0:00:16.4]} 34...
Rf1+ {[%clk 0:01:03.2]} 35. Kh2 {[%clk 0:00:16.3]} 35... Qf7 {[%clk 0:00:58.8]}
36. Rg4 {[%clk 0:00:16.4]} 36... Nh7 {[%clk 0:00:49.4]} 37. Nd4 {[%clk
0:00:16.4]} 37... Nf6 {[%clk 0:00:50.1]} 38. Rg5 {[%clk 0:00:14.3]} 38... Nh5
{[%clk 0:00:49.6]} 39. Rxh5 {[%clk 0:00:12.2]} 39... Qxh5 {[%clk 0:00:46.3]} 40.
Ne6 {[%clk 0:00:13.3]} 40... Qe5 {[%clk 0:00:46]} 41. Nxg7 {[%clk 0:00:12.8]}
41... Qxg3+ {[%clk 0:00:46.6]} 0-1

[Event "*** MasterClass Titled Tuesday Blitz"]
[Site "Chess.com"]
[Date "2017.09.05"]
[Round "9"]
[White "HanSchut"]
[Black "Bad4life"]
[Result "1-0"]
[WhiteElo "2331"]
[BlackElo "2160"]
[TimeControl "180+2"]
[EndTime "15:11:43 PDT"]
[Termination "HanSchut won by checkmate"]

1. e4 {[%clk 0:03:01.9]} 1... c5 {[%clk 0:02:58.1]} 2. Nf3 {[%clk 0:03:00.7]}
2... d6 {[%clk 0:02:59.1]} 3. d4 {[%clk 0:03:01.3]} 3... cxd4 {[%clk 0:02:59.9]}
4. Nxd4 {[%clk 0:03:02.9]} 4... Nf6 {[%clk 0:03:00.4]} 5. Nc3 {[%clk 0:03:03.7]}
5... g6 {[%clk 0:03:02.7]} 6. Be3 {[%clk 0:03:01.4]} 6... Bg7 {[%clk 0:03:04.6]}
7. f3 {[%clk 0:03:02.7]} 7... O-O {[%clk 0:03:06.5]} 8. Qd2 {[%clk 0:03:03.9]}
8... Nc6 {[%clk 0:03:08.1]} 9. O-O-O {[%clk 0:03:04.1]} 9... d5 {[%clk
0:03:07.1]} 10. Kb1 {[%clk 0:03:04.1]} 10... Rb8 {[%clk 0:03:03.6]} 11. h4
{[%clk 0:01:37.1]} 11... Bd7 {[%clk 0:02:49.7]} 12. exd5 {[%clk 0:01:33.4]}
12... Nb4 {[%clk 0:02:35.4]} 13. h5 {[%clk 0:01:32.9]} 13... Nbxd5 {[%clk
0:02:29]} 14. Nxd5 {[%clk 0:01:31.7]} 14... Nxd5 {[%clk 0:02:29.9]} 15. Bh6
{[%clk 0:01:26.5]} 15... Be5 {[%clk 0:02:07.1]} 16. Bxf8 {[%clk 0:01:22.9]}
16... Qxf8 {[%clk 0:01:54.4]} 17. hxg6 {[%clk 0:01:22.3]} 17... hxg6 {[%clk
0:01:52.2]} 18. Bc4 {[%clk 0:01:02.5]} 18... Nb6 {[%clk 0:01:36.3]} 19. Bb3
{[%clk 0:01:01.6]} 19... Rd8 {[%clk 0:01:30.9]} 20. Qg5 {[%clk 0:00:57.6]} 20...
Qg7 {[%clk 0:01:18.3]} 21. c3 {[%clk 0:00:34.5]} 21... Bf6 {[%clk 0:01:16.9]}
22. Qg3 {[%clk 0:00:34.1]} 22... a5 {[%clk 0:01:03.4]} 23. a3 {[%clk 0:00:32.6]}
23... a4 {[%clk 0:01:05]} 24. Bc2 {[%clk 0:00:32.6]} 24... Rc8 {[%clk
0:00:59.9]} 25. f4 {[%clk 0:00:26.8]} 25... Nc4 {[%clk 0:00:58.3]} 26. f5 {[%clk
0:00:27.4]} 26... g5 {[%clk 0:00:58.6]} 27. Rh5 {[%clk 0:00:26.6]} 27... b5
{[%clk 0:00:48.6]} 28. Rdh1 {[%clk 0:00:26.9]} 28... Nd2+ {[%clk 0:00:46.7]} 29.
Ka1 {[%clk 0:00:27.1]} 29... Bxd4 {[%clk 0:00:45.1]} 30. cxd4 {[%clk 0:00:20.7]}
30... f6 {[%clk 0:00:24.4]} 31. Qh3 {[%clk 0:00:21.8]} 31... Rxc2 {[%clk
0:00:06.4]} 32. Rh8+ {[%clk 0:00:22.1]} 32... Kf7 {[%clk 0:00:03.2]} 33. Qh5+
{[%clk 0:00:22.5]} 33... Qg6 {[%clk 0:00:02]} 34. Qxg6# {[%clk 0:00:23.2]} 1-0

[Event "*** MasterClass Titled Tuesday Blitz"]
[Site "Chess.com"]
[Date "2017.09.05"]
[Round "9"]
[White "ChessQueen"]
[Black "ALeks_Ivlev"]
[Result "1-0"]
[WhiteElo "2601"]
[BlackElo "2444"]
[TimeControl "180+2"]
[EndTime "15:12:27 PDT"]
[Termination "ChessQueen won by resignation"]

1. e4 {[%clk 0:03:01.9]} 1... e5 {[%clk 0:02:59.2]} 2. Nf3 {[%clk 0:03:02.1]}
2... Nc6 {[%clk 0:03:00.2]} 3. Bc4 {[%clk 0:03:01.9]} 3... Bc5 {[%clk
0:02:59.5]} 4. c3 {[%clk 0:03:00.8]} 4... Nf6 {[%clk 0:03:00.2]} 5. d4 {[%clk
0:03:01.7]} 5... exd4 {[%clk 0:03:01]} 6. cxd4 {[%clk 0:03:03.2]} 6... Bb4+
{[%clk 0:03:01.5]} 7. Bd2 {[%clk 0:03:04.3]} 7... Nxe4 {[%clk 0:03:01.4]} 8.
Bxb4 {[%clk 0:03:03.9]} 8... Nxb4 {[%clk 0:03:02.4]} 9. Bxf7+ {[%clk 0:03:04.7]}
9... Kxf7 {[%clk 0:03:03]} 10. Qb3+ {[%clk 0:03:05.7]} 10... d5 {[%clk
0:03:00.5]} 11. Qxb4 {[%clk 0:03:05.9]} 11... Re8 {[%clk 0:02:59]} 12. O-O
{[%clk 0:02:58]} 12... Kg8 {[%clk 0:02:54.3]} 13. Nc3 {[%clk 0:02:58.8]} 13...
Ng5 {[%clk 0:02:26.3]} 14. Ne5 {[%clk 0:02:54.3]} 14... c6 {[%clk 0:02:25.7]}
15. f4 {[%clk 0:02:50.3]} 15... Nf7 {[%clk 0:02:24.9]} 16. Na4 {[%clk
0:02:37.2]} 16... Qc7 {[%clk 0:02:16.8]} 17. Rac1 {[%clk 0:02:35.4]} 17... Bf5
{[%clk 0:02:12.4]} 18. Rf3 {[%clk 0:02:27]} 18... Nd6 {[%clk 0:02:07.4]} 19. Nc3
{[%clk 0:02:18.3]} 19... Be4 {[%clk 0:01:45.6]} 20. Rf2 {[%clk 0:02:01.2]} 20...
a5 {[%clk 0:01:42.2]} 21. Qb3 {[%clk 0:02:01.1]} 21... Kh8 {[%clk 0:01:33.8]}
22. Nxd5 {[%clk 0:01:55.8]} 22... Qd8 {[%clk 0:01:06.8]} 23. Nc3 {[%clk
0:01:37.4]} 23... Bf5 {[%clk 0:01:07]} 24. d5 {[%clk 0:01:33.7]} 24... c5 {[%clk
0:00:57.9]} 25. Re1 {[%clk 0:01:28.3]} 25... Kg8 {[%clk 0:00:38.6]} 26. Rfe2
{[%clk 0:01:23.8]} 26... Qc7 {[%clk 0:00:32.6]} 27. Nb5 {[%clk 0:01:21.7]} 27...
Nxb5 {[%clk 0:00:29.6]} 28. Qxb5 {[%clk 0:01:14.4]} 28... Rf8 {[%clk 0:00:27.4]}
29. Rc1 {[%clk 0:00:51.7]} 29... b6 {[%clk 0:00:23]} 30. Qc6 {[%clk 0:00:49]}
30... Qa7 {[%clk 0:00:20.5]} 31. d6 {[%clk 0:00:48.1]} 31... Be6 {[%clk
0:00:17]} 32. d7 {[%clk 0:00:46.8]} 32... Bxa2 {[%clk 0:00:17.6]} 33. Rd2 {[%clk
0:00:43.6]} 33... Rad8 {[%clk 0:00:18.3]} 34. Qd6 {[%clk 0:00:27.1]} 34... Qb7
{[%clk 0:00:17.8]} 35. Nc6 {[%clk 0:00:26.4]} 35... Bf7 {[%clk 0:00:10.6]} 36.
Nxd8 {[%clk 0:00:26.7]} 36... Rxd8 {[%clk 0:00:11.5]} 37. Qe7 {[%clk 0:00:27.5]}
37... Qc7 {[%clk 0:00:11.8]} 38. Re1 {[%clk 0:00:26.5]} 38... h5 {[%clk
0:00:12.2]} 39. Re5 {[%clk 0:00:26.3]} 39... c4 {[%clk 0:00:12.4]} 40. Rg5
{[%clk 0:00:25]} 40... c3 {[%clk 0:00:12.9]} 41. bxc3 {[%clk 0:00:25.8]} 41...
b5 {[%clk 0:00:13.8]} 42. Qf6 {[%clk 0:00:22.1]} 42... g6 {[%clk 0:00:12.6]} 43.
Re5 {[%clk 0:00:20.5]} 43... b4 {[%clk 0:00:13.2]} 44. Re7 {[%clk 0:00:16.3]}
44... Qc5+ {[%clk 0:00:14]} 45. Rd4 {[%clk 0:00:16.6]} 45... Rf8 {[%clk
0:00:14.7]} 46. d8=Q {[%clk 0:00:16.6]} 46... Qxc3 {[%clk 0:00:15.8]} 47. Qxf7+
{[%clk 0:00:17]} 1-0

[Event "*** MasterClass Titled Tuesday Blitz"]
[Site "Chess.com"]
[Date "2017.09.05"]
[Round "9"]
[White "AbdAlAgathos"]
[Black "DiogenesSinopeus"]
[Result "1-0"]
[WhiteElo "2356"]
[BlackElo "2371"]
[TimeControl "180+2"]
[EndTime "15:12:46 PDT"]
[Termination "AbdAlAgathos won by checkmate"]

1. e4 {[%clk 0:03:01.9]} 1... e5 {[%clk 0:03:00.9]} 2. Nf3 {[%clk 0:03:03]} 2...
Nc6 {[%clk 0:03:01.7]} 3. Bb5 {[%clk 0:03:04]} 3... a6 {[%clk 0:03:02.8]} 4. Ba4
{[%clk 0:03:05.2]} 4... d6 {[%clk 0:03:04.7]} 5. c3 {[%clk 0:03:04.6]} 5... f5
{[%clk 0:03:04.9]} 6. exf5 {[%clk 0:02:55.2]} 6... Bxf5 {[%clk 0:03:06.8]} 7.
O-O {[%clk 0:02:49]} 7... Bd3 {[%clk 0:03:02.3]} 8. Re1 {[%clk 0:02:49.8]} 8...
Be7 {[%clk 0:02:58.1]} 9. Bc2 {[%clk 0:02:48]} 9... Bxc2 {[%clk 0:02:59.2]} 10.
Qxc2 {[%clk 0:02:49.4]} 10... Qd7 {[%clk 0:02:58.8]} 11. d4 {[%clk 0:02:41.9]}
11... Nf6 {[%clk 0:02:58.6]} 12. dxe5 {[%clk 0:02:23.9]} 12... Nxe5 {[%clk
0:02:59.9]} 13. Nd4 {[%clk 0:02:10.4]} 13... O-O-O {[%clk 0:02:32.7]} 14. Qf5
{[%clk 0:02:08.9]} 14... g6 {[%clk 0:02:24.9]} 15. Qe6 {[%clk 0:01:58.6]} 15...
c5 {[%clk 0:02:16.5]} 16. Qxd7+ {[%clk 0:01:56]} 16... Kxd7 {[%clk 0:02:18.4]}
17. Nb3 {[%clk 0:01:53.6]} 17... Nd3 {[%clk 0:02:11.3]} 18. Rd1 {[%clk
0:01:40.3]} 18... Nxc1 {[%clk 0:02:12.4]} 19. Nxc1 {[%clk 0:01:31.1]} 19... d5
{[%clk 0:02:10.6]} 20. Nd2 {[%clk 0:01:22.6]} 20... Kc6 {[%clk 0:02:08.8]} 21.
Nd3 {[%clk 0:01:20.9]} 21... Bd6 {[%clk 0:02:09.3]} 22. c4 {[%clk 0:01:13.8]}
22... d4 {[%clk 0:02:04.6]} 23. b4 {[%clk 0:00:55.6]} 23... b6 {[%clk
0:02:01.8]} 24. Nb3 {[%clk 0:00:51.7]} 24... Ne4 {[%clk 0:01:57]} 25. bxc5
{[%clk 0:00:49]} 25... bxc5 {[%clk 0:01:57.4]} 26. Re1 {[%clk 0:00:37.2]} 26...
Rhe8 {[%clk 0:01:54.1]} 27. Rab1 {[%clk 0:00:28.5]} 27... Bc7 {[%clk 0:01:37.7]}
28. f3 {[%clk 0:00:15]} 28... Nc3 {[%clk 0:01:38.8]} 29. Rb2 {[%clk 0:00:13.3]}
29... Rxe1+ {[%clk 0:01:37.7]} 30. Nxe1 {[%clk 0:00:15.2]} 30... d3 {[%clk
0:01:34.1]} 31. Rd2 {[%clk 0:00:14.5]} 31... Ne2+ {[%clk 0:00:41.2]} 32. Kf2
{[%clk 0:00:15]} 32... Nf4 {[%clk 0:00:17.6]} 33. g3 {[%clk 0:00:15.6]} 33...
Nh3+ {[%clk 0:00:18.9]} 34. Kg2 {[%clk 0:00:15]} 34... Ng5 {[%clk 0:00:18.6]}
35. Nxd3 {[%clk 0:00:16.3]} 35... Bd6 {[%clk 0:00:05.9]} 36. Ne5+ {[%clk
0:00:14.9]} 36... Kc7 {[%clk 0:00:05.7]} 37. Nd3 {[%clk 0:00:11]} 37... Kc6
{[%clk 0:00:05.3]} 38. Ndxc5 {[%clk 0:00:11.5]} 38... Rf8 {[%clk 0:00:05.5]} 39.
Ne4 {[%clk 0:00:11]} 39... Nxe4 {[%clk 0:00:06.5]} 40. fxe4 {[%clk 0:00:12.9]}
40... Re8 {[%clk 0:00:07.1]} 41. c5 {[%clk 0:00:12.3]} 41... Be5 {[%clk
0:00:06.6]} 42. Rd5 {[%clk 0:00:13]} 42... Bc3 {[%clk 0:00:06.5]} 43. Kf3 {[%clk
0:00:13.1]} 43... Rf8+ {[%clk 0:00:07.3]} 44. Ke3 {[%clk 0:00:14.2]} 44... Rf1
{[%clk 0:00:08.4]} 45. Nd4+ {[%clk 0:00:14.8]} 45... Bxd4+ {[%clk 0:00:09]} 46.
Kxd4 {[%clk 0:00:16.7]} 46... Rf2 {[%clk 0:00:09.9]} 47. Rd6+ {[%clk 0:00:16.8]}
47... Kc7 {[%clk 0:00:10.8]} 48. Rxa6 {[%clk 0:00:17.2]} 48... Rxh2 {[%clk
0:00:11.9]} 49. Kd5 {[%clk 0:00:17]} 49... h5 {[%clk 0:00:12.4]} 50. Rxg6 {[%clk
0:00:17.2]} 50... Rg2 {[%clk 0:00:12.2]} 51. Rg7+ {[%clk 0:00:16.4]} 51... Kd8
{[%clk 0:00:13.1]} 52. Kd6 {[%clk 0:00:17.7]} 52... h4 {[%clk 0:00:13.2]} 53.
Rg8# {[%clk 0:00:18.6]} 1-0

[Event "*** MasterClass Titled Tuesday Blitz"]
[Site "Chess.com"]
[Date "2017.09.05"]
[Round "9"]
[White "Indianlad"]
[Black "iusegine"]
[Result "1-0"]
[WhiteElo "2608"]
[BlackElo "2383"]
[TimeControl "180+2"]
[EndTime "15:12:49 PDT"]
[Termination "Indianlad won by resignation"]

1. d4 {[%clk 0:03:01.9]} 1... Nf6 {[%clk 0:03:00]} 2. g3 {[%clk 0:03:02.7]} 2...
g6 {[%clk 0:02:58.7]} 3. Bg2 {[%clk 0:03:02.7]} 3... Bg7 {[%clk 0:02:59.4]} 4.
Nf3 {[%clk 0:03:04]} 4... O-O {[%clk 0:03:00.8]} 5. O-O {[%clk 0:03:05.7]} 5...
d6 {[%clk 0:03:01.8]} 6. c4 {[%clk 0:03:06.2]} 6... Nbd7 {[%clk 0:03:02.8]} 7.
Nc3 {[%clk 0:03:07.5]} 7... e5 {[%clk 0:02:52.8]} 8. Qc2 {[%clk 0:03:08.7]} 8...
exd4 {[%clk 0:02:49.5]} 9. Nxd4 {[%clk 0:03:08.9]} 9... Nb6 {[%clk 0:02:51.1]}
10. b3 {[%clk 0:03:09.1]} 10... c5 {[%clk 0:02:50.1]} 11. Nf3 {[%clk 0:03:09.8]}
11... d5 {[%clk 0:02:43.5]} 12. cxd5 {[%clk 0:03:08.8]} 12... Nfxd5 {[%clk
0:02:42.9]} 13. Nxd5 {[%clk 0:02:42.2]} 13... Bxa1 {[%clk 0:02:28.5]} 14. Bg5
{[%clk 0:02:43.1]} 14... f6 {[%clk 0:02:08.4]} 15. Bh6 {[%clk 0:02:44.3]} 15...
Nxd5 {[%clk 0:01:51.9]} 16. Bxf8 {[%clk 0:02:43.8]} 16... Qxf8 {[%clk
0:01:48.6]} 17. Rxa1 {[%clk 0:02:45]} 17... Be6 {[%clk 0:01:44.5]} 18. a3 {[%clk
0:02:44.5]} 18... Rd8 {[%clk 0:01:41.6]} 19. e4 {[%clk 0:02:39.7]} 19... Nb6
{[%clk 0:01:33.4]} 20. Qc3 {[%clk 0:02:40.8]} 20... c4 {[%clk 0:01:22.5]} 21.
bxc4 {[%clk 0:02:34.1]} 21... Nxc4 {[%clk 0:01:14.2]} 22. e5 {[%clk 0:02:30.3]}
22... fxe5 {[%clk 0:01:05.7]} 23. Ng5 {[%clk 0:02:31]} 23... Rd2 {[%clk
0:00:26.4]} 24. Rf1 {[%clk 0:02:19.3]} 24... Bf7 {[%clk 0:00:22.5]} 25. Bxb7
{[%clk 0:02:16.5]} 25... Qxa3 {[%clk 0:00:21.3]} 26. Qxa3 {[%clk 0:02:10.4]}
26... Nxa3 {[%clk 0:00:22.6]} 27. Nxf7 {[%clk 0:02:05.5]} 27... Kxf7 {[%clk
0:00:24.5]} 28. Ra1 {[%clk 0:02:06.7]} 28... Nc2 {[%clk 0:00:20]} 29. Rxa7
{[%clk 0:02:05.3]} 29... Ne1 {[%clk 0:00:16.1]} 30. Kf1 {[%clk 0:02:02]} 30...
Nd3 {[%clk 0:00:15.7]} 31. Be4+ {[%clk 0:02:02.4]} 31... Ke6 {[%clk 0:00:11.8]}
32. Ra6+ {[%clk 0:01:51.7]} 32... Ke7 {[%clk 0:00:10.6]} 33. Ra7+ {[%clk
0:01:52.9]} 33... Ke6 {[%clk 0:00:11.1]} 34. Bxd3 {[%clk 0:01:54.3]} 34... Rxd3
{[%clk 0:00:12.7]} 35. Rxh7 {[%clk 0:01:56.2]} 35... Kf6 {[%clk 0:00:13.6]} 36.
h4 {[%clk 0:01:55.5]} 36... Ra3 {[%clk 0:00:14.6]} 37. Kg2 {[%clk 0:01:56.2]}
37... Rb3 {[%clk 0:00:15.8]} 38. Ra7 {[%clk 0:01:56.5]} 38... Rc3 {[%clk
0:00:16.7]} 39. Ra4 {[%clk 0:01:56.1]} 39... Rb3 {[%clk 0:00:17.5]} 40. g4
{[%clk 0:01:56.7]} 40... Rd3 {[%clk 0:00:17.7]} 41. Ra6+ {[%clk 0:01:55.5]}
41... Kg7 {[%clk 0:00:18.6]} 42. Re6 {[%clk 0:01:52]} 42... Rd5 {[%clk 0:00:20]}
43. g5 {[%clk 0:01:49.9]} 43... Kf7 {[%clk 0:00:21.4]} 44. Rf6+ {[%clk
0:01:50.4]} 44... Kg7 {[%clk 0:00:23]} 45. Kg3 {[%clk 0:01:50.3]} 45... Rd3+
{[%clk 0:00:23.7]} 46. Rf3 {[%clk 0:01:48.4]} 46... Rd4 {[%clk 0:00:24.2]} 47.
Re3 {[%clk 0:01:48.4]} 47... Rd5 {[%clk 0:00:24.2]} 48. Ra3 {[%clk 0:01:49.4]}
48... Rb5 {[%clk 0:00:24.4]} 49. f3 {[%clk 0:01:49.1]} 49... Kf7 {[%clk
0:00:22.6]} 50. Ra7+ {[%clk 0:01:49.3]} 50... Kf8 {[%clk 0:00:23.8]} 51. h5
{[%clk 0:01:50.7]} 51... e4 {[%clk 0:00:16.3]} 52. f4 {[%clk 0:01:50.6]} 52...
e3 {[%clk 0:00:15.7]} 53. h6 {[%clk 0:01:47.1]} 53... e2 {[%clk 0:00:13.1]} 54.
Kf2 {[%clk 0:01:47.3]} 54... Rb4 {[%clk 0:00:13.2]} 55. Kxe2 {[%clk 0:01:40.3]}
55... Rxf4 {[%clk 0:00:13.7]} 56. h7 {[%clk 0:01:35.5]} 56... Rh4 {[%clk
0:00:14]} 57. Kf3 {[%clk 0:01:37]} 57... Rh1 {[%clk 0:00:14.1]} 58. Kf4 {[%clk
0:01:37]} 58... Rf1+ {[%clk 0:00:13.4]} 59. Ke5 {[%clk 0:01:37.9]} 59... Rh1
{[%clk 0:00:10.1]} 60. Kf6 {[%clk 0:01:33.7]} 60... Rf1+ {[%clk 0:00:09.1]} 61.
Kxg6 {[%clk 0:01:34.2]} 1-0

[Event "*** MasterClass Titled Tuesday Blitz"]
[Site "Chess.com"]
[Date "2017.09.05"]
[Round "9"]
[White "yurisolo"]
[Black "GrigorGrigorov"]
[Result "1/2-1/2"]
[WhiteElo "2587"]
[BlackElo "2613"]
[TimeControl "180+2"]
[EndTime "15:12:54 PDT"]
[Termination "Game drawn by agreement"]

1. e4 {[%clk 0:03:01.9]} 1... c5 {[%clk 0:03:00.4]} 2. Nf3 {[%clk 0:03:02.8]}
2... d6 {[%clk 0:03:01.1]} 3. d4 {[%clk 0:03:04.1]} 3... cxd4 {[%clk 0:03:02.1]}
4. Nxd4 {[%clk 0:03:06]} 4... Nf6 {[%clk 0:03:02.6]} 5. Nc3 {[%clk 0:03:07.4]}
5... a6 {[%clk 0:03:03.4]} 6. Be3 {[%clk 0:03:08.1]} 6... e5 {[%clk 0:03:03.4]}
7. Nb3 {[%clk 0:03:09.2]} 7... Be6 {[%clk 0:03:03.3]} 8. Qd2 {[%clk 0:03:10.4]}
8... Nbd7 {[%clk 0:02:53.1]} 9. O-O-O {[%clk 0:03:11.1]} 9... Be7 {[%clk
0:02:49.6]} 10. f4 {[%clk 0:03:10.9]} 10... Rc8 {[%clk 0:02:47.8]} 11. Kb1
{[%clk 0:03:08.8]} 11... b5 {[%clk 0:02:45]} 12. h3 {[%clk 0:03:05.4]} 12... b4
{[%clk 0:02:40.1]} 13. Nd5 {[%clk 0:03:04.8]} 13... Nxd5 {[%clk 0:02:33.3]} 14.
exd5 {[%clk 0:03:05.1]} 14... Bf5 {[%clk 0:02:34.7]} 15. Rc1 {[%clk 0:02:17.7]}
15... a5 {[%clk 0:02:30.6]} 16. fxe5 {[%clk 0:01:51.2]} 16... Nxe5 {[%clk
0:02:29.3]} 17. Nd4 {[%clk 0:01:39.3]} 17... Bd7 {[%clk 0:02:24.9]} 18. Ba6
{[%clk 0:01:28.8]} 18... Rb8 {[%clk 0:02:15.8]} 19. c4 {[%clk 0:01:12.5]} 19...
O-O {[%clk 0:01:51.7]} 20. g4 {[%clk 0:01:08.8]} 20... Re8 {[%clk 0:01:46.3]}
21. Bb5 {[%clk 0:00:59.5]} 21... Bf8 {[%clk 0:01:38.2]} 22. Nc6 {[%clk 0:00:48]}
22... Bxc6 {[%clk 0:01:27.3]} 23. dxc6 {[%clk 0:00:49.9]} 23... Qc7 {[%clk
0:01:27.8]} 24. Qd5 {[%clk 0:00:43.6]} 24... Rbc8 {[%clk 0:01:25.2]} 25. Bf4
{[%clk 0:00:35.5]} 25... Re6 {[%clk 0:00:55.2]} 26. Rhe1 {[%clk 0:00:35.5]}
26... Rce8 {[%clk 0:00:53.4]} 27. Rcd1 {[%clk 0:00:15.8]} 27... g6 {[%clk
0:00:53.4]} 28. c5 {[%clk 0:00:09]} 28... dxc5 {[%clk 0:00:53.1]} 29. Bxe5
{[%clk 0:00:06]} 29... Rxe5 {[%clk 0:00:53.5]} 30. Rxe5 {[%clk 0:00:06.8]} 30...
Rxe5 {[%clk 0:00:51.5]} 31. Qd8 {[%clk 0:00:07.9]} 31... Re7 {[%clk 0:00:35.1]}
32. Rd7 {[%clk 0:00:08.4]} 32... Rxd7 {[%clk 0:00:26.8]} 33. Qxd7 {[%clk
0:00:09.5]} 33... Qxd7 {[%clk 0:00:25.7]} 34. cxd7 {[%clk 0:00:11.4]} 34... Be7
{[%clk 0:00:26.9]} 35. Kc2 {[%clk 0:00:11.7]} 35... Kf8 {[%clk 0:00:23.6]} 36.
Kd3 {[%clk 0:00:12.9]} 36... Bd8 {[%clk 0:00:23.7]} 37. Kc4 {[%clk 0:00:12.6]}
37... Bb6 {[%clk 0:00:24.5]} 38. Kd5 {[%clk 0:00:13.2]} 38... Ke7 {[%clk
0:00:25]} 39. Kc6 {[%clk 0:00:13.7]} 39... Bd8 {[%clk 0:00:25.3]} 40. Bd3 {[%clk
0:00:14.9]} 40... Ke6 {[%clk 0:00:23.3]} 41. b3 {[%clk 0:00:15.2]} 41... f5
{[%clk 0:00:23.6]} 42. gxf5+ {[%clk 0:00:16.4]} 42... gxf5 {[%clk 0:00:24.5]}
43. Kxc5 {[%clk 0:00:17.8]} 43... h6 {[%clk 0:00:22.3]} 44. Kc6 {[%clk 0:00:18]}
44... f4 {[%clk 0:00:23]} 45. Be2 {[%clk 0:00:19]} 45... Ke7 {[%clk 0:00:21.2]}
46. Bg4 {[%clk 0:00:19]} 46... Kf7 {[%clk 0:00:21.8]} 47. Kd6 {[%clk 0:00:20.2]}
47... Kf6 {[%clk 0:00:22.7]} 48. Kd5 {[%clk 0:00:20.4]} 48... Ke7 {[%clk
0:00:23.2]} 49. Ke5 {[%clk 0:00:21.1]} 49... Bc7+ {[%clk 0:00:23.5]} 50. Kf5
{[%clk 0:00:20.9]} 50... f3 {[%clk 0:00:24.4]} 51. Bxf3 {[%clk 0:00:19.6]} 51...
Kxd7 {[%clk 0:00:25.5]} 52. Kg6 {[%clk 0:00:20.4]} 52... Bf4 {[%clk 0:00:26.3]}
53. h4 {[%clk 0:00:21.5]} 53... Kd6 {[%clk 0:00:26.3]} 54. h5 {[%clk 0:00:22.9]}
54... Ke5 {[%clk 0:00:26.5]} 55. Bc6 {[%clk 0:00:23.9]} 55... Kd4 {[%clk
0:00:27]} 56. Ba4 {[%clk 0:00:24.9]} 56... Bd2 {[%clk 0:00:28.1]} 57. Kf5 {[%clk
0:00:26.3]} 57... Kc3 {[%clk 0:00:29.1]} 58. Kg6 {[%clk 0:00:27.9]} 58... Kb2
{[%clk 0:00:29.8]} 59. Kf5 {[%clk 0:00:29.1]} 1/2-1/2